Department family,Entity,Allocation Date,Expense type,Expense Area,Supplier,Transaction Number,Amount in Sterling
Government Equalities Office,Equality and Human Rights Commission,19/04/2011,Accommodation,Corporate Management - People,Expotel,201104018,"1,819.22"
Government Equalities Office,Equality and Human Rights Commission,19/04/2011,Accommodation,Statutory Committee - Wales,University of Glamorgan,iPOS Invoice 39721,"1,425.72"
Government Equalities Office,Equality and Human Rights Commission,19/04/2011,Accommodation,Strategy - Policy Private,Expotel,201104019,888.06
Government Equalities Office,Equality and Human Rights Commission,19/04/2011,Accommodation,Legal - Legal Policy,Expotel,201104020,864.48
Government Equalities Office,Equality and Human Rights Commission,19/04/2011,Accommodation,Strategy - Policy Public,Expotel,201104021,694.79
Government Equalities Office,Equality and Human Rights Commission,19/04/2011,Accommodation,Statutory Committee - Disability,Expotel,201104022,690.28
Government Equalities Office,Equality and Human Rights Commission,19/04/2011,Accommodation,Scotland - Directorate,Expotel,201104023,587.09
Government Equalities Office,Equality and Human Rights Commission,19/04/2011,Accommodation,Wales Directorate,Expotel,201104024,515.82
Government Equalities Office,Equality and Human Rights Commission,19/04/2011,Accommodation,Strategy - Foresight,Expotel,201104025,504.24
Government Equalities Office,Equality and Human Rights Commission,19/04/2011,Agency Staff,Corporate Management - Finance,Veredus,iPOS Invoice 39776,"28,840.02"
Government Equalities Office,Equality and Human Rights Commission,19/04/2011,Agency Staff,Corporate Management - Finance,Veredus,iPOS Invoice 39773,"25,029.35"
Government Equalities Office,Equality and Human Rights Commission,26/04/2011,Agency Staff,Corporate Management - ICT,Odgers Interim,iPOS Invoice 39835,"24,420.00"
Government Equalities Office,Equality and Human Rights Commission,19/04/2011,Agency Staff,Corporate Management - Group Directorate,Veredus,iPOS Invoice 39774,"20,891.88"
Government Equalities Office,Equality and Human Rights Commission,19/04/2011,Agency Staff,Corporate Management - Business Planning,Veredus,iPOS Invoice 39775,"20,769.00"
Government Equalities Office,Equality and Human Rights Commission,26/04/2011,Agency Staff,Communications - External Affairs,Veredus,iPOS Invoice 39830,"20,424.00"
Government Equalities Office,Equality and Human Rights Commission,19/04/2011,Agency Staff,Corporate Management - People,Digby Morgan Consulting Ltd,iPOS Invoice 39741,"19,837.50"
Government Equalities Office,Equality and Human Rights Commission,19/04/2011,Agency Staff,Corporate Management - People,Digby Morgan Consulting Ltd,iPOS Invoice 39742,"19,285.50"
Government Equalities Office,Equality and Human Rights Commission,19/04/2011,Agency Staff,Corporate Management - Finance,Veredus,iPOS Invoice 39764,"19,044.00"
Government Equalities Office,Equality and Human Rights Commission,19/04/2011,Agency Staff,Corporate Management - Finance,Penna,iPOS Invoice 39772,"18,360.00"
Government Equalities Office,Equality and Human Rights Commission,19/04/2011,Agency Staff,Corporate Management - People,Veredus,iPOS Invoice 39763,"18,250.50"
Government Equalities Office,Equality and Human Rights Commission,19/04/2011,Agency Staff,Communications - External Affairs,Veredus,iPOS Invoice 39766,"17,457.00"
Government Equalities Office,Equality and Human Rights Commission,26/04/2011,Agency Staff,Strategy - Disability Programme,Penna,iPOS Invoice 39771,"14,391.00"
Government Equalities Office,Equality and Human Rights Commission,26/04/2011,Agency Staff,Communications - Group Directorate,Veredus,iPOS Invoice 39765,"11,730.00"
Government Equalities Office,Equality and Human Rights Commission,19/04/2011,Agency Staff,Corporate Management - Finance,Veredus,iPOS Invoice 39762,"11,592.00"
Government Equalities Office,Equality and Human Rights Commission,19/04/2011,Agency Staff,Communications - Group Directorate,Veredus,iPOS Invoice 39761,"10,212.00"
Government Equalities Office,Equality and Human Rights Commission,19/04/2011,Agency Staff,Corporate Management - Finance,Methods Consulting,iPOS Invoice 39730,"9,184.73"
Government Equalities Office,Equality and Human Rights Commission,19/04/2011,Agency Staff,Corporate Management - People,Penna,iPOS Invoice 39751,"7,566.00"
Government Equalities Office,Equality and Human Rights Commission,19/04/2011,Agency Staff,Strategy - Group Directorate,Edenbrown,iPOS Invoice 39733,"5,038.80"
Government Equalities Office,Equality and Human Rights Commission,26/04/2011,Agency Staff,Corporate Management - Business Planning,Reed Technology Manchester,iPOS Invoice 39841,"2,808.00"
Government Equalities Office,Equality and Human Rights Commission,26/04/2011,Agency Staff,Corporate Management - Corporate Governance,Venn Group,iPOS Invoice 39840,"2,641.32"
Government Equalities Office,Equality and Human Rights Commission,26/04/2011,Agency Staff,Corporate Management - Business Planning,Reed Technology Manchester,iPOS Invoice 39847,"2,184.00"
Government Equalities Office,Equality and Human Rights Commission,19/04/2011,Agency Staff,Strategy - Group Directorate,Edenbrown,iPOS Invoice 39736,"2,121.60"
Government Equalities Office,Equality and Human Rights Commission,26/04/2011,Agency Staff,Corporate Management - Finance,Hudson Global Resources Ltd,iPOS Invoice 39848,"1,932.00"
Government Equalities Office,Equality and Human Rights Commission,19/04/2011,Agency Staff,Corporate Management - Finance,Hudson Global Resources Ltd,iPOS Invoice 39759,"1,932.00"
Government Equalities Office,Equality and Human Rights Commission,19/04/2011,Agency Staff,Corporate Management - Finance,Hudson Global Resources Ltd,iPOS Invoice 39758,"1,932.00"
Government Equalities Office,Equality and Human Rights Commission,19/04/2011,Agency Staff,Corporate Management - Finance,Hudson Global Resources Ltd,iPOS Invoice 39757,"1,932.00"
Government Equalities Office,Equality and Human Rights Commission,19/04/2011,Agency Staff,Corporate Management - Finance,Hudson Global Resources Ltd,iPOS Invoice 39756,"1,932.00"
Government Equalities Office,Equality and Human Rights Commission,19/04/2011,Agency Staff,Corporate Management - Finance,Hudson Global Resources Ltd,iPOS Invoice 39755,"1,932.00"
Government Equalities Office,Equality and Human Rights Commission,19/04/2011,Agency Staff,Corporate Management - Finance,Hudson Global Resources Ltd,iPOS Invoice 39754,"1,932.00"
Government Equalities Office,Equality and Human Rights Commission,19/04/2011,Agency Staff,Corporate Management - Finance,Hudson Global Resources Ltd,iPOS Invoice 39753,"1,932.00"
Government Equalities Office,Equality and Human Rights Commission,26/04/2011,Agency Staff,Corporate Management - Business Planning,Reed Technology Manchester,iPOS Invoice 39846,"1,872.00"
Government Equalities Office,Equality and Human Rights Commission,26/04/2011,Agency Staff,Corporate Management - Business Planning,Reed Technology Manchester,iPOS Invoice 39845,"1,872.00"
Government Equalities Office,Equality and Human Rights Commission,26/04/2011,Agency Staff,Corporate Management - Business Planning,Reed Technology Manchester,iPOS Invoice 39844,"1,872.00"
Government Equalities Office,Equality and Human Rights Commission,26/04/2011,Agency Staff,Corporate Management - Business Planning,Reed Technology Manchester,iPOS Invoice 39843,"1,872.00"
Government Equalities Office,Equality and Human Rights Commission,19/04/2011,Agency Staff,Strategy - Group Directorate,Edenbrown,iPOS Invoice 39735,"1,764.72"
Government Equalities Office,Equality and Human Rights Commission,19/04/2011,Agency Staff,Corporate Management - People,Edenbrown,iPOS Invoice 39737,"1,732.14"
Government Equalities Office,Equality and Human Rights Commission,19/04/2011,Agency Staff,Corporate Management - People,Edenbrown,iPOS Invoice 39734,"1,732.14"
Government Equalities Office,Equality and Human Rights Commission,19/04/2011,Agency Staff,Strategy - Policy Private,Hudson Global Resources Ltd,iPOS Invoice 39760,"1,642.50"
Government Equalities Office,Equality and Human Rights Commission,19/04/2011,Agency Staff,Strategy - Policy Private,Hudson Global Resources Ltd,iPOS Invoice 39752,"1,642.50"
Government Equalities Office,Equality and Human Rights Commission,26/04/2011,Agency Staff,Communications - External Affairs,Xchangeteam Ltd,iPOS Invoice 39863,"1,514.08"
Government Equalities Office,Equality and Human Rights Commission,26/04/2011,Agency Staff,Communications - External Affairs,Xchangeteam Ltd,iPOS Invoice 39839,"1,324.80"
Government Equalities Office,Equality and Human Rights Commission,26/04/2011,Agency Staff,Communications - External Affairs,Xchangeteam Ltd,iPOS Invoice 39838,"1,324.80"
Government Equalities Office,Equality and Human Rights Commission,19/04/2011,Agency Staff,Corporate Management - Finance,Badenoch & Clark,iPOS Invoice 39794,"1,308.42"
Government Equalities Office,Equality and Human Rights Commission,26/04/2011,Agency Staff,Corporate Management - ICT,Badenoch & Clark,iPOS Invoice 39852,"1,095.41"
Government Equalities Office,Equality and Human Rights Commission,19/04/2011,Agency Staff,Corporate Management - ICT,Badenoch & Clark,iPOS Invoice 39731,"1,081.18"
Government Equalities Office,Equality and Human Rights Commission,26/04/2011,Agency Staff,Corporate Management - ICT,Badenoch & Clark,iPOS Invoice 39853,"1,052.72"
Government Equalities Office,Equality and Human Rights Commission,19/04/2011,Agency Staff,Communications - External Affairs,Reed Technology Manchester,iPOS Invoice 39767,"1,035.07"
Government Equalities Office,Equality and Human Rights Commission,26/04/2011,Agency Staff,Corporate Management - Business Planning,Reed Technology Manchester,iPOS Invoice 39842,936
Government Equalities Office,Equality and Human Rights Commission,26/04/2011,Agency Staff,Communications - External Affairs,Reed Employment,iPOS Invoice 39870,876.29
Government Equalities Office,Equality and Human Rights Commission,26/04/2011,Agency Staff,Communications - External Affairs,Edenbrown,iPOS Invoice 39831,850.62
Government Equalities Office,Equality and Human Rights Commission,19/04/2011,Agency Staff,Communications - External Affairs,Edenbrown,iPOS Invoice 39738,850.62
Government Equalities Office,Equality and Human Rights Commission,19/04/2011,Agency Staff,Communications - External Affairs,Reed Technology Manchester,iPOS Invoice 39777,833.81
Government Equalities Office,Equality and Human Rights Commission,26/04/2011,Agency Staff,Communications - External Affairs,Edenbrown,iPOS Invoice 39832,680.5
Government Equalities Office,Equality and Human Rights Commission,26/04/2011,Agency Staff,Communications - Stakeholder Relations,Morgan Law Partners LLP,iPOS Invoice 39868,569.16
Government Equalities Office,Equality and Human Rights Commission,26/04/2011,Agency Staff,Communications - Stakeholder Relations,Morgan Law Partners LLP,iPOS Invoice 39866,569.16
Government Equalities Office,Equality and Human Rights Commission,26/04/2011,Agency Staff,Communications - Stakeholder Relations,Morgan Law Partners LLP,iPOS Invoice 39865,569.16
Government Equalities Office,Equality and Human Rights Commission,26/04/2011,ATW - Agency/Staff Costs,Corporate Management - Finance,Edenbrown,iPOS Invoice 39833,706.08
Government Equalities Office,Equality and Human Rights Commission,26/04/2011,ATW - Agency/Staff Costs,Corporate Management - Finance,Edenbrown,iPOS Invoice 39869,550.37
Government Equalities Office,Equality and Human Rights Commission,13/04/2011,ATW - Agency/Staff Costs,Corporate Management - Finance,Edenbrown,iPOS Invoice 39437,515.53
Government Equalities Office,Equality and Human Rights Commission,26/04/2011,ATW - Agency/Staff Costs,Corporate Management - Finance,Linda Taylor Associates,iPOS Invoice 39837,503.28
Government Equalities Office,Equality and Human Rights Commission,26/04/2011,ATW - Agency/Staff Costs,Corporate Management - Finance,Linda Taylor Associates,iPOS Invoice 39836,503.28
Government Equalities Office,Equality and Human Rights Commission,19/04/2011,ATW - Agency/Staff Costs,Corporate Management - Finance,Linda Taylor Associates,iPOS Invoice 39729,503.28
Government Equalities Office,Equality and Human Rights Commission,19/04/2011,ATW - Non Staff Expenditure,Corporate Management - Finance,ATW - Non Staff Expenditure,iPOS Invoice 39726,"1,542.10"
Government Equalities Office,Equality and Human Rights Commission,19/04/2011,Barristers Fees,Legal/Monitoring - Casework,STEPHEN CRAGG,iPOS Invoice 39575,"14,932.38"
Government Equalities Office,Equality and Human Rights Commission,13/04/2011,Barristers Fees,Legal - Legal Policy,Jan Luba QC,iPOS Invoice 39626,"9,450.00"
Government Equalities Office,Equality and Human Rights Commission,13/04/2011,Barristers Fees,Legal/Monitoring - Casework,Stephen Broach,iPOS Invoice 39576,"6,744.96"
Government Equalities Office,Equality and Human Rights Commission,19/04/2011,Barristers Fees,Legal/Monitoring - Casework,Jude Bunting,iPOS Invoice 39597,"5,956.28"
Government Equalities Office,Equality and Human Rights Commission,13/04/2011,Barristers Fees,Legal/Monitoring - Casework,Robin Allen QC,iPOS Invoice 39654,"4,050.00"
Government Equalities Office,Equality and Human Rights Commission,13/04/2011,Barristers Fees,Strategy - Disability Programme,Miss Catherine Casserley,iPOS Invoice 39582,"2,484.00"
Government Equalities Office,Equality and Human Rights Commission,13/04/2011,Barristers Fees,Legal/Monitoring - Casework,Faculty Services Limited,iPOS Invoice 39637,"1,836.00"
Government Equalities Office,Equality and Human Rights Commission,19/04/2011,Barristers Fees,Legal/Monitoring - Casework,Jonathan Meichen,iPOS Invoice 39596,"1,770.00"
Government Equalities Office,Equality and Human Rights Commission,19/04/2011,Barristers Fees,Legal/Monitoring - Casework,Paul Epstein QC,iPOS Invoice 39587,"1,296.00"
Government Equalities Office,Equality and Human Rights Commission,19/04/2011,Barristers Fees,Legal/Monitoring - Casework,David Stephenson,iPOS Invoice 39598,998.75
Government Equalities Office,Equality and Human Rights Commission,13/04/2011,Books,Corporate Management - Corporate Governance,Sweet & Maxwell Ltd,iPOS Invoice 39622,604.78
Government Equalities Office,Equality and Human Rights Commission,13/04/2011,Catering,Statutory Committee - Wales,Conwy Business Centre,iPOS Invoice 39608,"1,318.56"
Government Equalities Office,Equality and Human Rights Commission,13/04/2011,Childcare Voucher Scheme,Corporate Management - People,Accor Services,iPOS Invoice 39669,"6,635.13"
Government Equalities Office,Equality and Human Rights Commission,13/04/2011,Cleaning Services,Corporate Management - Buildings,Caledonian Office & Window Cleaning,iPOS Invoice 39559,"1,067.28"
Government Equalities Office,Equality and Human Rights Commission,19/04/2011,Cleaning Services,Wales Directorate,Keith Brooks,iPOS Invoice 39705,"1,035.00"
Government Equalities Office,Equality and Human Rights Commission,26/04/2011,Client Support,Strategy - Disability Programme,Stt-Ubiqus (Palantype Services),iPOS Invoice 39862,"2,256.00"
Government Equalities Office,Equality and Human Rights Commission,26/04/2011,Client Support,Strategy - Disability Programme,Stt-Ubiqus (Palantype Services),iPOS Invoice 39881,"1,567.01"
Government Equalities Office,Equality and Human Rights Commission,13/04/2011,Client Support,Statutory Committee - Wales,Cymen Cyf,iPOS Invoice 39556,546
Government Equalities Office,Equality and Human Rights Commission,26/04/2011,Commission Meeting Costs,Statutory Committee - Disability,Abercrombie Interpretation Services Ltd,iPOS Invoice 39871,645.6
Government Equalities Office,Equality and Human Rights Commission,19/04/2011,Conference Interpreters Expenses- 3 events,Scotland - Directorate,Sign Language Interactions,iPOS Invoice 39611,504.72
Government Equalities Office,Equality and Human Rights Commission,13/04/2011,"Conference Set Up/Equipment Costs-The Information, Advice and Guidance Conference ",Corporate Management - Information Management,Link Exhibition Services,iPOS Invoice 39646,834
Government Equalities Office,Equality and Human Rights Commission,13/04/2011,Conference Speakers Fees- co-production for disabled people  3 events,Scotland - Directorate,New Economics Foundation,iPOS Invoice 39583,"4,290.00"
Government Equalities Office,Equality and Human Rights Commission,05/04/2011,Conference Speakers Fees- Facts About Wales conference,Wales Directorate,Victoria Winckler,iPOS Invoice 39491,500
Government Equalities Office,Equality and Human Rights Commission,13/04/2011,Conference Venue Costs-disabled people in Stirling,Scotland - Directorate,University of Stirling,iPOS Invoice 39580,570
Government Equalities Office,Equality and Human Rights Commission,13/04/2011,Consultancy Costs - Aberdeen Case for Concerning Practice Hearings,Strategy - Disability Programme,Faculty Services Limited,iPOS Invoice 39684,"2,804.40"
Government Equalities Office,Equality and Human Rights Commission,19/04/2011,Consultancy Costs - Disablity Harassment Inquiry,Strategy - Disability Programme,Simon Burrows,iPOS Invoice 39504,"3,888.00"
Government Equalities Office,Equality and Human Rights Commission,13/04/2011,Consultancy Costs - equality legislation in recruitment and employment in the mean and poultry processing insustry-,Strategy - Policy Private,Barbara Cohen,iPOS Invoice 39533,"6,000.00"
Government Equalities Office,Equality and Human Rights Commission,13/04/2011,Consultancy Costs - Guidance on Business and Human Rights,Strategy - Policy Private,Middlesex University,iPOS Invoice 39540,"6,451.20"
Government Equalities Office,Equality and Human Rights Commission,28/04/2011,Court Fees,Legal/Monitoring - Enforcement,"The Supreme Court of the United Kingdom,",iPOS Invoice 39898,800
Government Equalities Office,Equality and Human Rights Commission,13/04/2011,Dilapidations,Corporate Management - Buildings,DTZ,iPOS Invoice 39532,711
Government Equalities Office,Equality and Human Rights Commission,13/04/2011,Electricity,Corporate Management - Buildings,DWP,iPOS Invoice 39623,"7,891.69"
Government Equalities Office,Equality and Human Rights Commission,19/04/2011,Employee Assistance Programme,Corporate Management - People,Focus EAP Ltd,iPOS Invoice 39792,842.4
Government Equalities Office,Equality and Human Rights Commission,19/04/2011,Events Attendees Costs,Strategy - Policy Private,Expotel,201104017,"4,268.92"
Government Equalities Office,Equality and Human Rights Commission,19/04/2011,Events Attendees Costs,Wales Directorate,University of Wales,iPOS Invoice 39662,"1,267.50"
Government Equalities Office,Equality and Human Rights Commission,26/04/2011,Events Set Up/Equipment Costs,Statutory Committee - Scotland,Stuc Training Ltd,iPOS Invoice 39884,"1,800.00"
Government Equalities Office,Equality and Human Rights Commission,13/04/2011,Events Venue Costs,Scotland - Directorate,Macdonald Holyrood Hotel,iPOS Invoice 39495,"3,539.00"
Government Equalities Office,Equality and Human Rights Commission,13/04/2011,Events Venue Costs,Strategy - Foresight,Westminster Academy,iPOS Invoice 39577,800
Government Equalities Office,Equality and Human Rights Commission,19/04/2011,Fit Out Costs,Corporate Management - Buildings,King Sturge LLP,iPOS Invoice 39724,"86,428.68"
Government Equalities Office,Equality and Human Rights Commission,13/04/2011,Fit Out Costs,Corporate Management - Buildings,Eversheds LLP,iPOS Invoice 39675,"4,740.00"
Government Equalities Office,Equality and Human Rights Commission,13/04/2011,Fit Out Costs,Corporate Management - Buildings,Eversheds LLP,iPOS Invoice 39676,"4,020.60"
Government Equalities Office,Equality and Human Rights Commission,13/04/2011,Fit Out Costs,Corporate Management - Buildings,Eversheds LLP,iPOS Invoice 39677,882.74
Government Equalities Office,Equality and Human Rights Commission,18/04/2011,Grant Funding programme,Legal/Monitoring - Casework,Birmingham Law Centre,201104008,"19,105.00"
Government Equalities Office,Equality and Human Rights Commission,26/04/2011,Grant Funding programme,Legal/Monitoring - Casework,Chesterfield Law Centre,201104009,"14,074.00"
Government Equalities Office,Equality and Human Rights Commission,18/04/2011,Grant Funding programme,Legal/Monitoring - Casework,Sheffield Law Centre,201104010,"13,519.00"
Government Equalities Office,Equality and Human Rights Commission,18/04/2011,Grant Funding programme,Legal/Monitoring - Casework,Castlemilk Law and Money Advice Centre,201104011,"11,396.25"
Government Equalities Office,Equality and Human Rights Commission,18/04/2011,Grant Funding programme,Legal/Monitoring - Casework,Central London Law Centre,201104012,"11,250.00"
Government Equalities Office,Equality and Human Rights Commission,18/04/2011,Grant Funding programme,Legal/Monitoring - Casework,Stoke on Trent Citizens Advice Bureau,201104013,"11,250.00"
Government Equalities Office,Equality and Human Rights Commission,18/04/2011,Grant Funding programme,Legal/Monitoring - Casework,Cambridge & District CAB,201104004,"10,125.00"
Government Equalities Office,Equality and Human Rights Commission,18/04/2011,Grant Funding programme,Legal/Monitoring - Casework,Cambridge & District CAB,201104014,"10,125.00"
Government Equalities Office,Equality and Human Rights Commission,26/04/2011,Grant Funding programme,Legal/Monitoring - Casework,Gloucester Law Centre,201104015,"9,764.88"
Government Equalities Office,Equality and Human Rights Commission,18/04/2011,Grant Funding programme,Legal/Monitoring - Casework,Oxford Citizens Advice Bureau,201104016,"9,000.00"
Government Equalities Office,Equality and Human Rights Commission,18/04/2011,Grant Funding programme,Legal/Monitoring - Casework,Castlemilk Law and Money Advice Centre,201104005,"8,936.75"
Government Equalities Office,Equality and Human Rights Commission,18/04/2011,Grant Funding programme,Legal/Monitoring - Casework,Govan Law Centre,201104001,"8,900.00"
Government Equalities Office,Equality and Human Rights Commission,18/04/2011,Grant Funding programme,Legal/Monitoring - Casework,Castlemilk Law and Money Advice Centre,201104007,"6,101.00"
Government Equalities Office,Equality and Human Rights Commission,26/04/2011,Grant Funding programme,Legal/Monitoring - Casework,Bedford REC,201104002,"6,000.00"
Government Equalities Office,Equality and Human Rights Commission,18/04/2011,Grant Funding programme,Legal/Monitoring - Casework,Castlemilk Law and Money Advice Centre,201104006,"5,172.00"
Government Equalities Office,Equality and Human Rights Commission,26/04/2011,Grant Funding programme,Legal/Monitoring - Casework,Waltham Forest Race Equality Council,201104003,"4,269.00"
Government Equalities Office,Equality and Human Rights Commission,19/04/2011,Health And Safety,Wales Directorate,Regent Office Care Ltd,iPOS Invoice 39719,894
Government Equalities Office,Equality and Human Rights Commission,13/04/2011,Helpline Costs,Communications - Helpline,The Big Word,iPOS Invoice 39554,"4,042.44"
Government Equalities Office,Equality and Human Rights Commission,13/04/2011,Intangible Assets Cost,Corporate Management - ICT,Insight Direct (UK) Ltd,iPOS Invoice 39616,"17,940.32"
Government Equalities Office,Equality and Human Rights Commission,13/04/2011,IT Hardware Maintenance Contracts,Corporate Management - ICT,VideoCentric Ltd,iPOS Invoice 39568,"7,484.40"
Government Equalities Office,Equality and Human Rights Commission,26/04/2011,IT Hardware Maintenance Contracts,Corporate Management - ICT,InPhase Ltd,iPOS Invoice 39877,"6,591.60"
Government Equalities Office,Equality and Human Rights Commission,13/04/2011,IT Hardware Purchase (Non-capital),Corporate Management - ICT,Total Computer,iPOS Invoice 39625,"5,772.42"
Government Equalities Office,Equality and Human Rights Commission,19/04/2011,IT Services,Corporate Management - ICT,The Pluss Organisation,iPOS Invoice 39678,"3,905.04"
Government Equalities Office,Equality and Human Rights Commission,19/04/2011,IT Software Licences (Non-capital),Corporate Management - ICT,The Danwood Group Ltd,iPOS Invoice 39711,"1,488.00"
Government Equalities Office,Equality and Human Rights Commission,13/04/2011,IT Software Maintenance and Support,Corporate Management - ICT,Caretower Ltd,iPOS Invoice 39573,"2,861.69"
Government Equalities Office,Equality and Human Rights Commission,13/04/2011,Learning And Development,Corporate Management - People,LMD Learning Solutions Ltd,iPOS Invoice 39642,"5,396.40"
Government Equalities Office,Equality and Human Rights Commission,13/04/2011,Learning And Development,Corporate Management - People,Concerto Consulting Ltd,iPOS Invoice 39547,"3,600.00"
Government Equalities Office,Equality and Human Rights Commission,13/04/2011,Learning And Development,Corporate Management - People,Sapphire Systems Plc,iPOS Invoice 39691,"2,268.00"
Government Equalities Office,Equality and Human Rights Commission,26/04/2011,Learning And Development,Corporate Management - People,Focus On Training,iPOS Invoice 39829,"1,794.00"
Government Equalities Office,Equality and Human Rights Commission,19/04/2011,Learning And Development,Corporate Management - People,NewGrange Training & Services Ltd,iPOS Invoice 39727,"1,174.80"
Government Equalities Office,Equality and Human Rights Commission,26/04/2011,Learning And Development,Corporate Management - People,Evac+Chair International Ltd,iPOS Invoice 39827,"1,152.00"
Government Equalities Office,Equality and Human Rights Commission,13/04/2011,Learning And Development,Corporate Management - People,QA Ltd,iPOS Invoice 39645,"1,015.20"
Government Equalities Office,Equality and Human Rights Commission,13/04/2011,Library Costs,Corporate Management - Information Management,Newspaper Licensing Agency Limited,iPOS Invoice 39557,"8,013.65"
Government Equalities Office,Equality and Human Rights Commission,13/04/2011,Marketing,Communications - External Affairs,Redtray Ltd,iPOS Invoice 39555,"3,600.00"
Government Equalities Office,Equality and Human Rights Commission,13/04/2011,Marketing,Communications - External Affairs,Emailvision (UK) Ltd,iPOS Invoice 39619,"1,080.00"
Government Equalities Office,Equality and Human Rights Commission,13/04/2011,Marketing,Communications - External Affairs,The Dot Factory,iPOS Invoice 39632,657.6
Government Equalities Office,Equality and Human Rights Commission,19/04/2011,Office Reorganisation,Corporate Management - Buildings,Act3 Projects,iPOS Invoice 39819,"6,600.00"
Government Equalities Office,Equality and Human Rights Commission,13/04/2011,Parliamentary Monitoring,Legal - Group Directorate,Dod's Parliamentry Communications,iPOS Invoice 39531,"2,107.98"
Government Equalities Office,Equality and Human Rights Commission,19/04/2011,Pensions Administration,Corporate Management - Finance,Bestrustees,iPOS Invoice 39816,"4,500.00"
Government Equalities Office,Equality and Human Rights Commission,28/04/2011,Procurement Card,Corporate Management ,Lloyds Bank,201104032,795.12
Government Equalities Office,Equality and Human Rights Commission,13/04/2011,Professional Advice,Corporate Management - Buildings,Eversheds LLP,iPOS Invoice 39686,"15,557.63"
Government Equalities Office,Equality and Human Rights Commission,13/04/2011,Professional Advice,Legal - Group Directorate,The Council for Disabled Children,iPOS Invoice 39548,878.4
Government Equalities Office,Equality and Human Rights Commission,13/04/2011,Promotional Materials,Strategy - Policy Private,British Institute Of Human Rights,iPOS Invoice 39471,"5,500.00"
Government Equalities Office,Equality and Human Rights Commission,19/04/2011,Promotional Materials,Wales Directorate,MTS Multimedia Replication,iPOS Invoice 39658,930
Government Equalities Office,Equality and Human Rights Commission,19/04/2011,Promotional Materials,Wales Directorate,Allens Printers Ltd,iPOS Invoice 39657,516
Government Equalities Office,Equality and Human Rights Commission,13/04/2011,Property Insurance,Corporate Management - Buildings,CB Richard Ellis,iPOS Invoice 39541,"1,407.06"
Government Equalities Office,Equality and Human Rights Commission,13/04/2011,Publications Corporate,Legal - Legal Policy,Agnes Fletcher,iPOS Invoice 39601,"6,000.00"
Government Equalities Office,Equality and Human Rights Commission,13/04/2011,Publications Distribution,Communications - External Affairs,The Dot Factory,iPOS Invoice 39574,"2,224.80"
Government Equalities Office,Equality and Human Rights Commission,19/04/2011,Publications Distribution,Statutory Committee - Scotland,Mail Marketing,iPOS Invoice 39722,649.52
Government Equalities Office,Equality and Human Rights Commission,13/04/2011,Publications Printing,Legal - Legal Policy,Pelicanpress,iPOS Invoice 39613,"70,720.00"
Government Equalities Office,Equality and Human Rights Commission,13/04/2011,Publications Printing,Strategy - Policy Private,Fawcett Society,iPOS Invoice 39470,"5,710.00"
Government Equalities Office,Equality and Human Rights Commission,13/04/2011,Publications Printing,Legal - Legal Policy,Pelicanpress,iPOS Invoice 39655,"2,367.00"
Government Equalities Office,Equality and Human Rights Commission,13/04/2011,Publications Printing,Statutory Committee - Wales,Pelicanpress,iPOS Invoice 39628,"1,499.00"
Government Equalities Office,Equality and Human Rights Commission,13/04/2011,Publications Printing,Statutory Committee - Scotland,Pelicanpress,iPOS Invoice 39419,"1,416.00"
Government Equalities Office,Equality and Human Rights Commission,19/04/2011,Publications Storage Costs,Communications - External Affairs,Sitel UK Ltd,iPOS Invoice 39714,"7,909.58"
Government Equalities Office,Equality and Human Rights Commission,13/04/2011,Publications Translation,Legal - Legal Policy,The Big Word,iPOS Invoice 39552,"18,533.48"
Government Equalities Office,Equality and Human Rights Commission,13/04/2011,Publications Translation,Communications - External Affairs,The Big Word,iPOS Invoice 39553,"6,905.71"
Government Equalities Office,Equality and Human Rights Commission,19/04/2011,Rail Travel,Corporate Management - Finance,Penna,iPOS Invoice 39750,744
Government Equalities Office,Equality and Human Rights Commission,19/04/2011,Records Storage Costs,Corporate Management - Information Management,Iron Mountain (UK) Ltd,iPOS Invoice 39803,"3,319.02"
Government Equalities Office,Equality and Human Rights Commission,19/04/2011,Recruitment Interview Costs,Corporate Management - People,Penna,iPOS Invoice 39749,"1,104.00"
Government Equalities Office,Equality and Human Rights Commission,19/04/2011,Recruitment Placement Fees,Corporate Management - People,Badenoch & Clark,iPOS Invoice 39732,"1,444.06"
Government Equalities Office,Equality and Human Rights Commission,26/04/2011,Recruitment Placement Fees,Corporate Management - Finance,Select Financial Ltd,iPOS Invoice 39858,"1,407.79"
Government Equalities Office,Equality and Human Rights Commission,19/04/2011,Recruitment Placement Fees,Corporate Management - People,Edenbrown,iPOS Invoice 39740,"1,407.78"
Government Equalities Office,Equality and Human Rights Commission,19/04/2011,Recruitment Placement Fees,Wales Directorate,Hays Accountancy Personnel,iPOS Invoice 39747,"1,200.00"
Government Equalities Office,Equality and Human Rights Commission,19/04/2011,Recruitment Placement Fees,Wales Directorate,Hays Accountancy Personnel,iPOS Invoice 39746,"1,200.00"
Government Equalities Office,Equality and Human Rights Commission,19/04/2011,Recruitment Placement Fees,Legal/Monitoring - Casework,Hays Accountancy Personnel,iPOS Invoice 39745,"1,200.00"
Government Equalities Office,Equality and Human Rights Commission,19/04/2011,Recruitment Responses,Corporate Management - People,Penna,iPOS Invoice 39795,"1,062.48"
Government Equalities Office,Equality and Human Rights Commission,13/04/2011,Rent,Corporate Management - Buildings,BNP Paribas Real Estate,iPOS Invoice 39671,"5,058.00"
Government Equalities Office,Equality and Human Rights Commission,13/04/2011,Rent,Corporate Management - Buildings,BNP Paribas Real Estate,iPOS Invoice 39544,"3,799.27"
Government Equalities Office,Equality and Human Rights Commission,13/04/2011,Research,Strategy - Foresight,National Centre for Social Research,iPOS Invoice 39579,"17,445.60"
Government Equalities Office,Equality and Human Rights Commission,19/04/2011,Research,Statutory Committee - Scotland,Improvement Service,iPOS Invoice 39798,"13,000.00"
Government Equalities Office,Equality and Human Rights Commission,13/04/2011,Security,Corporate Management - Buildings,Altravision Security Systems,iPOS Invoice 39545,"1,026.00"
Government Equalities Office,Equality and Human Rights Commission,13/04/2011,Solicitors Fees,Legal/Monitoring - Casework,Disability Law Service,iPOS Invoice 39578,"9,760.34"
Government Equalities Office,Equality and Human Rights Commission,19/04/2011,Staff Support,Strategy - Policy Public,Staff Support,iPOS Invoice 39698,"2,670.25"
Government Equalities Office,Equality and Human Rights Commission,19/04/2011,Staff Support,Strategy - Policy Public,Staff Support,iPOS Invoice 39697,"2,020.05"
Government Equalities Office,Equality and Human Rights Commission,19/04/2011,Staff Support,Strategy - Policy Public,Staff Support,iPOS Invoice 39702,"1,142.75"
Government Equalities Office,Equality and Human Rights Commission,19/04/2011,Staff Support,Strategy - Policy Public,Staff Support,iPOS Invoice 39701,"1,017.75"
Government Equalities Office,Equality and Human Rights Commission,19/04/2011,Staff Support,Strategy - Policy Public,Staff Support,iPOS Invoice 39696,783.65
Government Equalities Office,Equality and Human Rights Commission,19/04/2011,Travel costs,Corporate Management ,Carlson Wagonlit Travel,201104029,"5,325.51"
Government Equalities Office,Equality and Human Rights Commission,19/04/2011,Travel costs,Corporate Management ,Carlson Wagonlit Travel,201104031,"5,112.58"
Government Equalities Office,Equality and Human Rights Commission,19/04/2011,Travel costs,Corporate Management ,Carlson Wagonlit Travel,201104030,"5,061.14"
Government Equalities Office,Equality and Human Rights Commission,26/04/2011,Travel costs,Corporate Management ,Carlson Wagonlit Travel,201104028,"2,841.11"
Government Equalities Office,Equality and Human Rights Commission,12/04/2011,Travel costs,Corporate Management ,Chris Brierley,201104026,564.04
Government Equalities Office,Equality and Human Rights Commission,12/04/2011,Travel costs,Wales Directorate,Steve Bennett,201104027,547.15
Government Equalities Office,Equality and Human Rights Commission,13/04/2011,Website Development Costs,Communications - External Affairs,Ability Net,iPOS Invoice 39638,"15,000.00"
Government Equalities Office,Equality and Human Rights Commission,13/04/2011,Website Development Costs,Communications - External Affairs,Insight Direct (UK) Ltd,iPOS Invoice 39605,"3,117.60"
Government Equalities Office,Equality and Human Rights Commission,13/04/2011,Website Development Costs,Communications - External Affairs,Ability Net,iPOS Invoice 39639,"1,998.00"
Government Equalities Office,Equality and Human Rights Commission,13/04/2011,Website Development Costs,Communications - External Affairs,Proactive UK Ltd,iPOS Invoice 39612,"1,332.00"
Government Equalities Office,Equality and Human Rights Commission,13/04/2011,Website Development Costs,Communications - External Affairs,Proactive UK Ltd,iPOS Invoice 39690,"1,302.00"
Government Equalities Office,Equality and Human Rights Commission,13/04/2011,Website Development Costs,Communications - External Affairs,Precedent Communications,iPOS Invoice 39688,744
Government Equalities Office,Equality and Human Rights Commission,13/04/2011,Website Hosting Costs,Communications - External Affairs,Precedent Communications,iPOS Invoice 39610,"7,032.00"
